fUST/lending_fUST_20250717
["ID","MTS","AMOUNT","RATE_DAILY","PERIOD"]
[372765156,1752754240400,-460.0,0.00017248,2]
[372765172,1752754240549,-460.0,0.00017248,2]
[372765174,1752754240568,-460.0,0.00017248,2]
[372765177,1752754240578,-460.0,0.00017248,2]
[372765179,1752754240588,-460.0,0.00017248,2]
[372765181,1752754240598,-460.0,0.00017248,2]
[372765183,1752754240607,-460.0,0.00017248,2]
[372765185,1752754240616,-437.81983444,0.00017248,2]
[372765188,1752754240626,-460.0,0.00017248,2]
[372765191,1752754240636,-460.0,0.00017248,2]
[372765194,1752754240646,-460.0,0.00017248,2]
[372765197,1752754240655,-460.0,0.00017248,2]
[372765200,1752754240665,-460.0,0.00017248,2]
[372765203,1752754240674,-460.0,0.00017248,2]
[372765206,1752754240684,-460.0,0.00017248,2]
[372765209,1752754240693,-460.0,0.00017248,2]
[372765212,1752754240702,-460.0,0.00017248,2]
[372765215,1752754240712,-594.5,0.00017248,2]
[372765218,1752754240721,-460.0,0.00017248,2]
[372765221,1752754240730,-460.0,0.00017248,2]
[372765224,1752754240740,-460.0,0.00017248,2]
[372765227,1752754240749,-460.0,0.00017248,2]
[372765230,1752754240759,-503.41,0.00017248,2]
[372765233,1752754240768,-460.0,0.00017248,2]
[372765236,1752754240778,-460.0,0.00017248,2]
[372765239,1752754240787,-460.0,0.00017248,2]
[372765242,1752754240796,-575.62,0.00017248,2]
[372765245,1752754240809,-466.26212432,0.0001725,2]
[372765248,1752754240819,-460.0,0.0001725,2]
[372765251,1752754240828,-460.0,0.0001725,2]
[372765254,1752754240838,-591.75930414,0.0001725,2]
[372765257,1752754240848,-460.0,0.0001725,2]
[372765260,1752754240858,-396.14543181,0.0001725,2]
[372765263,1752754240867,-460.0,0.0001725,2]
[372765266,1752754240877,-460.0,0.0001725,2]
[372765269,1752754240886,-460.0,0.0001725,2]
[372765272,1752754240896,-460.0,0.0001725,2]
[372765275,1752754240905,-460.0,0.0001725,2]
[372765277,1752754240914,-460.0,0.0001725,2]
[372765279,1752754240923,-3995.17,0.0001725,2]
[372765281,1752754240933,-500.0,0.0001725,2]
[372765283,1752754240942,-1129.16,0.0001725,2]
[372765286,1752754240951,-460.0,0.0001725,2]
[372765288,1752754240961,-460.0,0.0001725,2]
[372765292,1752754240970,-527.51,0.0001725,2]
[372765296,1752754240981,-460.0,0.0001725,2]
[372765300,1752754240992,-938.31,0.0001725,2]
[372765302,1752754241002,-460.0,0.0001725,2]
[372765306,1752754241012,-483.68,0.0001725,2]
[372765309,1752754241022,-460.0,0.00017251,2]
[372765312,1752754241031,-460.0,0.00017251,2]
[372765315,1752754241042,-460.0,0.00017251,2]
[372765318,1752754241051,-460.0,0.00017251,2]
[372765321,1752754241066,-461.45974363,0.00017251,2]
[372765324,1752754241076,-460.0,0.00017251,2]
[372765327,1752754241085,-460.0,0.00017251,2]
[372765329,1752754241095,-460.0,0.00017251,2]
[372765332,1752754241104,-460.0,0.00017251,2]
[372765335,1752754241113,-460.0,0.00017251,2]
[372765338,1752754241122,-329.07869915,0.00017251,2]
[372765341,1752754241132,-460.0,0.00017251,2]
[372765344,1752754241141,-460.0,0.00017251,2]
[372765347,1752754241151,-460.0,0.00017251,2]
[372765350,1752754241161,-460.0,0.00017251,2]
[372765353,1752754241170,-460.0,0.00017251,2]
[372765355,1752754241179,-977.81,0.00017251,2]
[372765358,1752754241189,-460.0,0.00017251,2]
[372765360,1752754241198,-1919.33,0.00017251,2]
[372765362,1752754241208,-843.35,0.00017251,2]
[372765364,1752754241218,-460.0,0.00017251,2]
[372765366,1752754241227,-460.0,0.00017251,2]
[372765368,1752754241236,-500.0,0.00017251,2]
[372765370,1752754241246,-500.0,0.00017251,2]
[372765372,1752754241255,-500.0,0.00017251,2]
[372765374,1752754241264,-500.0,0.00017251,2]
[372765376,1752754241274,-554.21,0.00017251,2]
[372765378,1752754241283,-1168.26,0.00017251,2]
[372765380,1752754241292,-460.0,0.00017251,2]
[372765382,1752754241302,-4148.36,0.00017251,2]
[372765384,1752754241313,-369188.06835533,0.00017252,2]
[372765386,1752754241322,-460.0,0.00017347,2]
[372765388,1752754241332,-460.0,0.00017347,2]
[372765390,1752754241341,-460.0,0.00017347,2]
[372765392,1752754241350,-600.14,0.00017347,2]
[372765394,1752754241359,-460.0,0.00017347,2]
[372765396,1752754241369,-460.0,0.00017347,2]
[372765398,1752754241378,-460.0,0.00017347,2]
[372765400,1752754241388,-460.0,0.00017347,2]
[372765402,1752754241397,-460.0,0.00017347,2]
[372765404,1752754241406,-464.25310144,0.00017347,2]
[372765406,1752754241416,-558.96,0.00017347,2]
[372765408,1752754241426,-460.0,0.00017347,2]
[372765410,1752754241435,-460.0,0.00017347,2]
[372765412,1752754241444,-460.0,0.00017347,2]
[372765413,1752754241454,-460.0,0.00017347,2]
[372765415,1752754241464,-460.0,0.00017347,2]
[372765417,1752754241474,-460.0,0.00017347,2]
[372765419,1752754241483,-460.0,0.00017347,2]
[372765421,1752754241492,-460.0,0.00017347,2]
[372765423,1752754241502,-460.0,0.00017347,2]
[372765425,1752754241511,-460.0,0.00017347,2]
[372765426,1752754241520,-460.0,0.00017347,2]
[372765427,1752754241530,-460.0,0.00017347,2]
[372765428,1752754241539,-460.0,0.00017347,2]
[372765429,1752754241549,-460.0,0.00017347,2]
[372765430,1752754241561,-460.0,0.00017347,2]
[372765431,1752754241572,-1282.41,0.00017347,2]
[372765432,1752754241581,-460.0,0.00017347,2]
[372765433,1752754241591,-460.0,0.00017347,2]
[372765434,1752754241600,-460.0,0.00017347,2]
[372765435,1752754241609,-460.0,0.00017347,2]
[372765436,1752754241619,-460.0,0.00017347,2]
[372765437,1752754241628,-652.5,0.00017347,2]
[372765438,1752754241638,-460.0,0.00017347,2]
[372765439,1752754241647,-460.0,0.00017347,2]
[372765440,1752754241657,-460.0,0.00017347,2]
[372765441,1752754241666,-460.0,0.00017351,2]
[372765442,1752754241675,-460.0,0.00017351,2]
[372765443,1752754241685,-460.0,0.00017351,2]
[372765444,1752754241695,-460.0,0.00017351,2]
[372765445,1752754241705,-460.0,0.00017351,2]
[372765446,1752754241715,-460.0,0.00017351,2]
[372765447,1752754241725,-460.0,0.00017351,2]
[372765448,1752754241734,-460.0,0.00017351,2]
[372765449,1752754241743,-460.0,0.00017351,2]
[372765450,1752754241753,-258.52047324,0.00017351,2]
[372765451,1752754241762,-460.0,0.00017351,2]
[372765452,1752754241772,-460.0,0.00017351,2]
[372765453,1752754241782,-460.0,0.00017351,2]
[372765454,1752754241791,-460.0,0.00017351,2]
[372765455,1752754241802,-460.0,0.00017351,2]
[372765456,1752754241813,-460.0,0.00017351,2]
[372765457,1752754241822,-460.0,0.00017351,2]
[372765458,1752754241831,-460.0,0.00017351,2]
[372765459,1752754241841,-463.67983135,0.00017351,2]
[372765460,1752754241850,-460.0,0.00017351,2]
[372765461,1752754241860,-460.0,0.00017351,2]
[372765462,1752754241869,-460.0,0.00017351,2]
[372765463,1752754241880,-460.0,0.00017351,2]
[372765464,1752754241891,-460.0,0.00017351,2]
[372765465,1752754241900,-460.0,0.00017351,2]
[372765466,1752754241909,-460.0,0.00017352,2]
[372765467,1752754241918,-460.0,0.00017352,2]
[372765468,1752754241927,-460.0,0.00017352,2]
[372765469,1752754241937,-460.0,0.00017352,2]
[372765470,1752754241945,-460.0,0.00017352,2]
[372765471,1752754241954,-460.0,0.00017352,2]
[372765472,1752754241964,-270.47790927,0.00017352,2]
[372765473,1752754241973,-460.0,0.00017352,2]
[372765474,1752754241983,-460.0,0.00017352,2]
[372765475,1752754241993,-460.0,0.00017352,2]
[372765476,1752754242003,-460.0,0.00017352,2]
[372765477,1752754242012,-460.0,0.00017352,2]
[372765478,1752754242021,-317.94998213,0.00017352,2]
[372765479,1752754242031,-460.0,0.00017352,2]
[372765480,1752754242039,-460.0,0.00017352,2]
[372765481,1752754242048,-460.0,0.00017352,2]
[372765482,1752754242058,-460.0,0.00017352,2]
[372765483,1752754242069,-464.66770651,0.00017352,2]
[372765484,1752754242079,-464.94632199,0.00017517,2]
[372765485,1752754242089,-460.0,0.00017517,2]
[372765486,1752754242100,-186.352625,0.00017517,2]
[372765487,1752754242111,-460.0,0.00017517,2]
[372765488,1752754242121,-460.0,0.00017517,2]
[372765489,1752754242131,-460.0,0.00017517,2]
[372765490,1752754242141,-1473.51,0.00017517,2]
[372765491,1752754242150,-460.0,0.00017517,2]
[372765492,1752754242158,-460.0,0.00017518,2]
[372765493,1752754242168,-987.82,0.00017518,2]
[372765494,1752754242176,-460.0,0.00017519,2]
[372765495,1752754242185,-460.0,0.0001752,2]
[372765496,1752754242194,-460.0,0.0001752,2]
[372765497,1752754242203,-460.0,0.0001752,2]
[372765498,1752754242212,-460.0,0.0001752,2]
[372765499,1752754242221,-2908.46,0.0001752,2]
[372765500,1752754242232,-460.0,0.0001752,2]
[372765501,1752754242241,-460.0,0.0001752,2]
[372765502,1752754242250,-2337.66,0.0001752,2]
[372765503,1752754242260,-460.0,0.0001752,2]
[372765504,1752754242269,-559.18,0.0001752,2]
[372765505,1752754242279,-1832.13,0.0001752,2]
[372765506,1752754242289,-460.0,0.0001752,2]
[372765507,1752754242298,-460.0,0.0001752,2]
[372765508,1752754242310,-2159.31,0.0001752,2]
[372765509,1752754242320,-460.0,0.0001752,2]
[372765510,1752754242330,-460.0,0.0001752,2]
[372765511,1752754242340,-811.2,0.0001752,2]
[372765512,1752754242350,-460.0,0.0001752,2]
[372765513,1752754242359,-501.94,0.0001752,2]
[372765514,1752754242370,-1218.49,0.0001752,2]
[372765515,1752754242379,-460.0,0.0001752,2]
[372765516,1752754242389,-460.0,0.0001752,2]
[372765517,1752754242398,-460.0,0.0001752,2]
[372765518,1752754242407,-460.0,0.0001752,2]
[372765519,1752754242415,-687.59,0.0001752,2]
[372765520,1752754242423,-460.0,0.0001752,2]
[372765521,1752754242431,-460.0,0.00017522,2]
[372765522,1752754242440,-460.0,0.00017522,2]
[372765523,1752754242450,-460.0,0.00017522,2]
[372765524,1752754242459,-460.0,0.00017522,2]
[372765525,1752754242469,-460.0,0.00017522,2]
[372765526,1752754242479,-429.13335672,0.00017522,2]
[372765527,1752754242489,-460.0,0.00017522,2]
[372765528,1752754242499,-460.0,0.00017522,2]
[372765529,1752754242509,-460.0,0.00017522,2]
[372765530,1752754242518,-460.0,0.00017522,2]
[372765531,1752754242529,-460.0,0.00017522,2]
[372765532,1752754242538,-460.0,0.00017522,2]
[372765533,1752754242550,-460.0,0.00017522,2]
[372765534,1752754242567,-460.0,0.00017522,2]
[372765535,1752754242587,-460.0,0.00017522,2]
[372765536,1752754242596,-460.0,0.00017522,2]
[372765537,1752754242606,-460.0,0.00017522,2]
[372765538,1752754242616,-574.9,0.00017522,2]
[372765539,1752754242625,-460.0,0.00017522,2]
[372765540,1752754242632,-460.0,0.00017522,2]
[372765541,1752754242641,-460.0,0.00017522,2]
[372765542,1752754242650,-460.0,0.00017522,2]
[372765543,1752754242659,-460.0,0.00017522,2]
[372765544,1752754242667,-460.0,0.00017522,2]
[372765545,1752754242676,-460.0,0.00017522,2]
[372765546,1752754242685,-460.0,0.00017522,2]
[372765547,1752754242694,-815.74,0.00017522,2]
[372765548,1752754242704,-460.0,0.00017522,2]
[372765549,1752754242714,-460.0,0.00017522,2]
[372765550,1752754242724,-470.94396115,0.00017522,2]
[372765551,1752754242733,-460.0,0.00017522,2]
[372765552,1752754242742,-460.0,0.00017522,2]
[372765553,1752754242751,-460.0,0.00017522,2]
[372765554,1752754242761,-460.0,0.00017522,2]
[372765555,1752754242770,-460.0,0.00017522,2]
[372765556,1752754242780,-460.0,0.00017522,2]
[372765557,1752754242789,-460.0,0.00017522,2]
[372765558,1752754242799,-460.0,0.00017522,2]
[372765559,1752754242810,-594.5,0.00017522,2]
[372765560,1752754242823,-460.0,0.00017522,2]
[372765561,1752754242835,-460.0,0.00017522,2]
[372765562,1752754242844,-460.0,0.00017522,2]
[372765563,1752754242853,-460.0,0.00017522,2]
[372765564,1752754242861,-503.41,0.00017522,2]
[372765565,1752754242871,-460.0,0.00017522,2]
[372765566,1752754242880,-460.0,0.00017522,2]
[372765567,1752754242889,-575.62,0.00017522,2]
[372765568,1752754242898,-460.0,0.00017524,2]
[372765569,1752754242907,-460.0,0.00017524,2]
[372765570,1752754242916,-460.0,0.00017524,2]
[372765571,1752754242925,-460.0,0.00017524,2]
[372765572,1752754242934,-460.0,0.00017524,2]
[372765573,1752754242943,-460.0,0.00017524,2]
[372765574,1752754242952,-3995.17,0.00017524,2]
[372765575,1752754242961,-1129.16,0.00017524,2]
[372765576,1752754242969,-460.0,0.00017524,2]
[372765577,1752754242978,-460.0,0.00017524,2]
[372765578,1752754242987,-527.51,0.00017524,2]
[372765579,1752754243000,-460.0,0.00017524,2]
[372765580,1752754243009,-938.31,0.00017524,2]
[372765582,1752754243018,-483.68,0.00017524,2]
[372765584,1752754243027,-460.0,0.00017525,2]
[372765585,1752754243038,-460.0,0.00017525,2]
[372765586,1752754243046,-460.0,0.00017525,2]
[372765587,1752754243057,-460.0,0.00017525,2]
[372765588,1752754243066,-460.0,0.00017525,2]
[372765590,1752754243076,-460.0,0.00017525,2]
[372765591,1752754243088,-977.81,0.00017525,2]
[372765592,1752754243097,-1919.33,0.00017525,2]
[372765593,1752754243107,-843.35,0.00017525,2]
[372765594,1752754243117,-460.0,0.00017525,2]
[372765595,1752754243126,-1168.26,0.00017525,2]
[372765597,1752754243136,-460.0,0.00017525,2]
[372765598,1752754243146,-4148.36,0.00017525,2]
[372765599,1752754243155,-1329.72013542,0.00017613,2]
[372765600,1752754243165,-460.0,0.00017621,2]
[372765601,1752754243174,-460.0,0.00017621,2]
[372765603,1752754243184,-600.14,0.00017621,2]
[372765604,1752754243193,-460.0,0.00017621,2]
[372765605,1752754243202,-460.0,0.00017621,2]
[372765606,1752754243212,-460.0,0.00017621,2]
[372765607,1752754243222,-460.0,0.00017621,2]
[372765609,1752754243232,-460.0,0.00017621,2]
[372765610,1752754243242,-558.96,0.00017621,2]
[372765611,1752754243252,-460.0,0.00017621,2]
[372765612,1752754243263,-460.0,0.00017621,2]
[372765613,1752754243272,-460.0,0.00017621,2]
[372765614,1752754243282,-460.0,0.00017621,2]
[372765617,1752754243292,-460.0,0.00017621,2]
[372765619,1752754243302,-460.0,0.00017621,2]
[372765621,1752754243313,-460.0,0.00017621,2]
[372765623,1752754243323,-460.0,0.00017621,2]
[372765625,1752754243333,-279.68,0.00017621,2]
[372765627,1752754243343,-1282.41,0.00017621,2]
[372765629,1752754243352,-460.0,0.00017621,2]
[372765632,1752754243362,-460.0,0.00017621,2]
[372765634,1752754243372,-460.0,0.00017621,2]
[372765636,1752754243381,-652.5,0.00017621,2]
[372765638,1752754243392,-460.0,0.00017621,2]
[372765640,1752754243402,-460.0,0.00017621,2]
[372765642,1752754243412,-460.0,0.00017625,2]
[372765643,1752754243422,-460.0,0.00017625,2]
[372765645,1752754243431,-460.0,0.00017625,2]
[372765647,1752754243441,-460.0,0.00017625,2]
[372765649,1752754243451,-460.0,0.00017625,2]
[372765651,1752754243460,-460.0,0.00017625,2]
[372765653,1752754243470,-460.0,0.00017625,2]
[372765655,1752754243479,-460.0,0.00017625,2]
[372765658,1752754243489,-460.0,0.00017625,2]
[372765660,1752754243499,-460.0,0.00017625,2]
[372765662,1752754243509,-464.86063796,0.00017625,2]
[372765682,1752754243681,-460.0,0.00017625,2]
[372765685,1752754243692,-460.0,0.00017625,2]
[372765687,1752754243701,-460.0,0.00017625,2]
[372765689,1752754243710,-460.0,0.00017626,2]
[372765691,1752754243720,-239.04363834,0.00017626,2]
[372765693,1752754243729,-460.0,0.00017626,2]
[372765695,1752754243738,-460.0,0.00017626,2]
[372765697,1752754243747,-465.57928394,0.00017626,2]
[372765699,1752754243756,-460.0,0.00017626,2]
[372765701,1752754243765,-468.60795741,0.00017626,2]
[372765703,1752754243776,-460.0,0.00017626,2]
[372765705,1752754243787,-460.0,0.00017626,2]
[372765707,1752754243799,-460.0,0.00017626,2]
[372765709,1752754243813,-460.0,0.00017626,2]
[372765711,1752754243823,-460.0,0.00017626,2]
[372765714,1752754243833,-1300.0,0.00017673,2]
[372765716,1752754243842,-460.0,0.00017791,2]
[372765719,1752754243852,-460.0,0.00017791,2]
[372765721,1752754243861,-460.0,0.00017791,2]
[372765723,1752754243871,-1473.51,0.00017791,2]
[372765725,1752754243880,-987.82,0.00017792,2]
[372765727,1752754243890,-460.0,0.00017793,2]
[372765729,1752754243899,-460.0,0.00017794,2]
[372765731,1752754243908,-460.0,0.00017794,2]
[372765733,1752754243917,-460.0,0.00017794,2]
[372765735,1752754243926,-2908.46,0.00017794,2]
[372765737,1752754243935,-2337.66,0.00017794,2]
[372765739,1752754243944,-460.0,0.00017794,2]
[372765741,1752754243954,-559.18,0.00017794,2]
[372765743,1752754243964,-1832.13,0.00017794,2]
[372765745,1752754243973,-460.0,0.00017794,2]
[372765747,1752754243983,-2159.31,0.00017794,2]
[372765749,1752754243995,-460.0,0.00017794,2]
[372765751,1752754244004,-811.2,0.00017794,2]
[372765753,1752754244014,-460.0,0.00017794,2]
[372765755,1752754244023,-501.94,0.00017794,2]
[372765757,1752754244033,-1218.49,0.00017794,2]
[372765759,1752754244043,-495.78,0.00017794,2]
[372765761,1752754244052,-460.0,0.00017794,2]
[372765763,1752754244062,-460.0,0.00017794,2]
[372765765,1752754244073,-687.59,0.00017794,2]
[372765767,1752754244083,-460.0,0.00017794,2]
[372765769,1752754244092,-460.0,0.00017796,2]
[372765771,1752754244102,-369.47235491,0.00017796,2]
[372765773,1752754244111,-460.0,0.00017796,2]
[372765775,1752754244121,-460.0,0.00017796,2]
[372765777,1752754244136,-460.0,0.00017796,2]
[372765779,1752754244146,-460.0,0.00017796,2]
[372765781,1752754244156,-460.0,0.00017796,2]
[372765783,1752754244166,-460.0,0.00017796,2]
[372765784,1752754244175,-460.0,0.00017796,2]
[372765786,1752754244185,-574.9,0.00017796,2]
[372765788,1752754244196,-460.0,0.00017796,2]
[372765790,1752754244207,-460.0,0.00017796,2]
[372765792,1752754244220,-460.0,0.00017796,2]
[372765794,1752754244231,-460.0,0.00017796,2]
[372765795,1752754244248,-460.0,0.00017796,2]
[372765797,1752754244258,-815.74,0.00017796,2]
[372765800,1752754244268,-460.0,0.00017796,2]
[372765802,1752754244277,-460.0,0.00017796,2]
[372765804,1752754244287,-460.0,0.00017796,2]
[372765805,1752754244296,-460.0,0.00017796,2]
[372765808,1752754244306,-460.0,0.00017796,2]
[372765810,1752754244316,-460.0,0.00017796,2]
[372765811,1752754244326,-594.5,0.00017796,2]
[372765813,1752754244335,-460.0,0.00017796,2]
[372765816,1752754244345,-460.0,0.00017796,2]
[372765818,1752754244354,-460.0,0.00017796,2]
[372765819,1752754244363,-503.41,0.00017796,2]
[372765822,1752754244373,-460.0,0.00017796,2]
[372765824,1752754244381,-575.62,0.00017796,2]
[372765826,1752754244391,-460.0,0.00017798,2]
[372765828,1752754244399,-460.0,0.00017798,2]
[372765830,1752754244409,-538.56,0.00017798,2]
[372765832,1752754244418,-460.0,0.00017798,2]
[372765834,1752754244427,-460.0,0.00017798,2]
[372765836,1752754244436,-460.0,0.00017798,2]
[372765838,1752754244444,-3995.17,0.00017798,2]
[372765840,1752754244454,-1129.16,0.00017798,2]
[372765842,1752754244463,-460.0,0.00017798,2]
[372765844,1752754244472,-513.86063935,0.00017798,2]
[372765846,1752754244481,-527.51,0.00017798,2]
[372765848,1752754244490,-460.0,0.00017798,2]
[372765850,1752754244499,-938.31,0.00017798,2]
[372765852,1752754244508,-483.68,0.00017798,2]
[372765854,1752754244517,-460.0,0.00017799,2]
[372765856,1752754244526,-460.0,0.00017799,2]
[372765858,1752754244536,-460.0,0.00017799,2]
[372765860,1752754244545,-977.81,0.00017799,2]
[372765861,1752754244554,-1919.33,0.00017799,2]
[372765862,1752754244564,-843.35,0.00017799,2]
[372765863,1752754244573,-460.0,0.00017799,2]
[372765865,1752754244583,-1168.26,0.00017799,2]
[372765867,1752754244591,-249.64,0.00017799,2]
[372765869,1752754244600,-4148.36,0.00017799,2]
[372765871,1752754244610,-501.02754054,0.00017833,2]
[372765873,1752754244620,-162.78318151,0.00017833,2]
[372765875,1752754244629,-500.0,0.00017873,2]
[372765877,1752754244638,-500.0,0.00017873,2]
[372765880,1752754244649,-500.0,0.00017873,2]
[372765882,1752754244658,-500.0,0.0001789,2]
[372765884,1752754244668,-460.0,0.00017895,2]
[372765886,1752754244677,-600.14,0.00017895,2]
[372765888,1752754244688,-460.0,0.00017895,2]
[372765890,1752754244697,-558.96,0.00017895,2]
[372765892,1752754244706,-460.0,0.00017895,2]
[372765894,1752754244716,-460.0,0.00017895,2]
[372765895,1752754244726,-460.0,0.00017895,2]
[372765897,1752754244736,-1282.41,0.00017895,2]
[372765899,1752754244745,-460.0,0.00017895,2]
[372765901,1752754244754,-460.0,0.00017895,2]
[372765903,1752754244763,-460.0,0.00017895,2]
[372765905,1752754244772,-652.5,0.00017895,2]
[372765907,1752754244781,-460.0,0.00017895,2]
[372765909,1752754244791,-460.0,0.00017895,2]
[372765912,1752754244801,-460.0,0.00017899,2]
[372765914,1752754244812,-460.0,0.00017899,2]
[372765915,1752754244821,-460.0,0.00017899,2]
[372765916,1752754244840,-267.75515917,0.00017899,2]
[372765917,1752754244850,-322.17469094,0.00017899,2]
[372765919,1752754244859,-460.0,0.00017899,2]
[372765921,1752754244868,-460.0,0.00017899,2]
[372765923,1752754244878,-465.7251263,0.00017899,2]
[372765925,1752754244888,-460.0,0.000179,2]
[372765927,1752754244897,-460.0,0.000179,2]
[372765928,1752754244906,-460.0,0.000179,2]
[372765931,1752754244915,-460.0,0.000179,2]
[372765933,1752754244926,-10500.19860867,0.000179,2]
[372765935,1752754244935,-207.94276079,0.00017902,2]
[372765937,1752754244945,-500.0,0.00017902,2]
[372765939,1752754244955,-446.89874135,0.00017902,2]
[372765941,1752754244964,-500.0,0.00017902,2]
[372765943,1752754244974,-500.0,0.00017918,2]
[372765945,1752754244984,-500.99840015,0.00017918,2]
[372765946,1752754244999,-500.0,0.0001799,2]
[372765947,1752754245014,-3004.49213334,0.00018055,2]
[372765948,1752754245023,-460.0,0.00018065,2]
[372765949,1752754245033,-460.0,0.00018065,2]
[372765950,1752754245042,-460.0,0.00018065,2]
[372765951,1752754245052,-1473.51,0.00018065,2]
[372765952,1752754245062,-987.82,0.00018066,2]
[372765953,1752754245072,-460.0,0.00018068,2]
[372765954,1752754245082,-460.0,0.00018068,2]
[372765955,1752754245091,-2908.46,0.00018068,2]
[372765956,1752754245101,-2337.66,0.00018068,2]
[372765957,1752754245111,-460.0,0.00018068,2]
[372765958,1752754245120,-559.18,0.00018068,2]
[372765959,1752754245129,-1832.13,0.00018068,2]
[372765960,1752754245139,-460.0,0.00018068,2]
[372765961,1752754245148,-2159.31,0.00018068,2]
[372765962,1752754245159,-460.0,0.00018068,2]
[372765963,1752754245168,-811.2,0.00018068,2]
[372765964,1752754245177,-460.0,0.00018068,2]
[372765965,1752754245186,-501.94,0.00018068,2]
[372765966,1752754245196,-1218.49,0.00018068,2]
[372765967,1752754245205,-460.0,0.00018068,2]
[372765968,1752754245215,-687.59,0.00018068,2]
[372765969,1752754245224,-460.0,0.00018068,2]
[372765970,1752754245233,-460.0,0.0001807,2]
[372765971,1752754245243,-460.0,0.0001807,2]
[372765972,1752754245252,-460.0,0.0001807,2]
[372765974,1752754245261,-460.0,0.0001807,2]
[372765975,1752754245271,-460.0,0.0001807,2]
[372765978,1752754245280,-574.9,0.0001807,2]
[372765980,1752754245290,-460.0,0.0001807,2]
[372765982,1752754245300,-460.0,0.0001807,2]
[372765984,1752754245310,-815.74,0.0001807,2]
[372765985,1752754245319,-460.0,0.0001807,2]
[372765988,1752754245330,-460.0,0.0001807,2]
[372765989,1752754245347,-460.0,0.0001807,2]
[372765991,1752754245362,-431.60729271,0.0001807,2]
[372765993,1752754245371,-594.5,0.0001807,2]
[372765996,1752754245380,-460.0,0.0001807,2]
[372765998,1752754245389,-460.0,0.0001807,2]
[372766000,1752754245398,-460.0,0.0001807,2]
[372766002,1752754245407,-503.41,0.0001807,2]
[372766004,1752754245416,-460.0,0.0001807,2]
[372766006,1752754245425,-575.62,0.0001807,2]
[372766007,1752754245435,-6310.28231032,0.00018072,2]
[372766010,1752754245444,-460.0,0.00018072,2]
[372766012,1752754245453,-460.0,0.00018072,2]
[372766014,1752754245462,-460.0,0.00018072,2]
[372766016,1752754245471,-3995.17,0.00018072,2]
[372766018,1752754245480,-1129.16,0.00018072,2]
[372766020,1752754245489,-460.0,0.00018072,2]
[372766021,1752754245499,-527.51,0.00018072,2]
[372766024,1752754245509,-460.0,0.00018072,2]
[372766026,1752754245519,-938.31,0.00018072,2]
[372766028,1752754245528,-483.68,0.00018072,2]
[372766030,1752754245537,-460.0,0.00018073,2]
[372766032,1752754245546,-460.0,0.00018073,2]
[372766034,1752754245555,-977.81,0.00018073,2]
[372766036,1752754245565,-1919.33,0.00018073,2]